[Event "Early-Titled-Tuesday-Blitz-October-17-2023"]
[Site "Chess.com"]
[Date "2023.10.17"]
[Round "10"]
[White "Arystanner"]
[Black "VincentKeymer"]
[Result "1-0"]
[WhiteElo "2839"]
[BlackElo "3067"]
[TimeControl "180+1"]
[EndTime "9:58:21 PDT"]
[Termination "Arystanner won by resignation"]

1. e4 {[%clk 0:03:00.9]} 1... c6 {[%clk 0:03:00.3]} 2. d4 {[%clk 0:03:00.2]}
2... d5 {[%clk 0:03:01.2]} 3. exd5 {[%clk 0:03:01.1]} 3... cxd5 {[%clk
0:03:02.1]} 4. Nf3 {[%clk 0:03:01.7]} 4... Nc6 {[%clk 0:03:01.8]} 5. c3 {[%clk
0:03:02.4]} 5... Bf5 {[%clk 0:03:01]} 6. Qb3 {[%clk 0:03:01.9]} 6... Qd7 {[%clk
0:03:01.4]} 7. Nh4 {[%clk 0:03:02.5]} 7... Be6 {[%clk 0:03:02]} 8. Bd3 {[%clk
0:02:58.9]} 8... f6 {[%clk 0:03:02.3]} 9. O-O {[%clk 0:02:54.9]} 9... g5 {[%clk
0:03:02.1]} 10. Nf3 {[%clk 0:02:53.3]} 10... Nh6 {[%clk 0:02:56.3]} 11. Re1
{[%clk 0:02:53.5]} 11... Bf5 {[%clk 0:02:56.4]} 12. Bf1 {[%clk 0:02:48.6]} 12...
e6 {[%clk 0:02:52.1]} 13. Na3 {[%clk 0:02:38.9]} 13... Rc8 {[%clk 0:02:35.7]}
14. Qd1 {[%clk 0:02:34.4]} 14... Bxa3 {[%clk 0:02:27.3]} 15. bxa3 {[%clk
0:02:34.6]} 15... Na5 {[%clk 0:02:28]} 16. a4 {[%clk 0:02:31.6]} 16... O-O
{[%clk 0:02:12.4]} 17. h4 {[%clk 0:02:29.6]} 17... Bg4 {[%clk 0:02:12.9]} 18.
hxg5 {[%clk 0:02:25.9]} 18... fxg5 {[%clk 0:02:12.5]} 19. Ne5 {[%clk 0:02:26.6]}
19... Bxd1 {[%clk 0:02:01.4]} 20. Nxd7 {[%clk 0:02:25.7]} 20... Rf7 {[%clk
0:01:48.8]} 21. Ne5 {[%clk 0:02:26.2]} 21... Bxa4 {[%clk 0:01:48.5]} 22. Nxf7
{[%clk 0:02:26.6]} 22... Kxf7 {[%clk 0:01:47.3]} 23. Bxg5 {[%clk 0:02:25.9]}
23... Nf5 {[%clk 0:01:48]} 24. Bd2 {[%clk 0:02:26.3]} 24... Nc4 {[%clk
0:01:47.3]} 25. Bxc4 {[%clk 0:02:26.7]} 25... Rxc4 {[%clk 0:01:48.2]} 26. f3
{[%clk 0:02:23.9]} 26... Rc8 {[%clk 0:01:41.1]} 27. Kf2 {[%clk 0:02:23.3]} 27...
b5 {[%clk 0:01:30.2]} 28. g4 {[%clk 0:02:20.2]} 28... Nd6 {[%clk 0:01:26.1]} 29.
Rh1 {[%clk 0:02:20.3]} 29... Bc2 {[%clk 0:01:25.5]} 30. Bf4 {[%clk 0:02:10.2]}
30... Nc4 {[%clk 0:01:21.2]} 31. Kg3 {[%clk 0:02:10]} 31... Nb6 {[%clk
0:01:13.7]} 32. Rac1 {[%clk 0:02:07.5]} 32... Bg6 {[%clk 0:01:13.7]} 33. Bd6
{[%clk 0:02:05.2]} 33... Na4 {[%clk 0:01:12]} 34. Bb4 {[%clk 0:02:04.2]} 34...
a6 {[%clk 0:01:11.7]} 35. f4 {[%clk 0:02:04.5]} 35... Be4 {[%clk 0:01:11.3]} 36.
f5 {[%clk 0:02:04.5]} 36... Bxh1 {[%clk 0:01:09.9]} 37. Rxh1 {[%clk 0:02:01]}
37... exf5 {[%clk 0:01:10.2]} 38. gxf5 {[%clk 0:02:00.9]} 38... Kg7 {[%clk
0:01:02.2]} 39. Kf3 {[%clk 0:01:53.6]} 39... Rc4 {[%clk 0:00:50.4]} 40. Bd6
{[%clk 0:01:44.8]} 40... Rxc3+ {[%clk 0:00:49.9]} 41. Kf4 {[%clk 0:01:44.4]}
41... Nb2 {[%clk 0:00:50.1]} 42. Be5+ {[%clk 0:01:43.4]} 42... Kg8 {[%clk
0:00:50.5]} 43. Rg1+ {[%clk 0:01:40.8]} 43... Kf8 {[%clk 0:00:50.9]} 44. f6
{[%clk 0:01:39.8]} 44... Nc4 {[%clk 0:00:45.3]} 45. Kf5 {[%clk 0:01:38.4]} 45...
Rf3+ {[%clk 0:00:26.4]} 46. Ke6 {[%clk 0:01:38.9]} 46... h5 {[%clk 0:00:26.3]}
47. Rg7 {[%clk 0:01:37.7]} 47... h4 {[%clk 0:00:20.3]} 48. Rh7 {[%clk 0:01:34]}
1-0

[Event "Early-Titled-Tuesday-Blitz-October-17-2023"]
[Site "Chess.com"]
[Date "2023.10.17"]
[Round "10"]
[White "masterofpuppets2"]
[Black "sorch29"]
[Result "1-0"]
[WhiteElo "2520"]
[BlackElo "2417"]
[TimeControl "180+1"]
[EndTime "9:58:24 PDT"]
[Termination "masterofpuppets2 won on time"]

1. d4 {[%clk 0:03:00.9]} 1... Nf6 {[%clk 0:02:57.4]} 2. c4 {[%clk 0:03:01]} 2...
g6 {[%clk 0:02:57.8]} 3. f3 {[%clk 0:03:01.4]} 3... Bg7 {[%clk 0:02:58.6]} 4. e4
{[%clk 0:03:01.8]} 4... d6 {[%clk 0:02:59.5]} 5. Nc3 {[%clk 0:03:02.4]} 5... O-O
{[%clk 0:02:59.2]} 6. Be3 {[%clk 0:03:03.1]} 6... c5 {[%clk 0:02:59.8]} 7. Nge2
{[%clk 0:03:02.9]} 7... Nc6 {[%clk 0:02:59.2]} 8. d5 {[%clk 0:03:03.2]} 8... Ne5
{[%clk 0:02:59.5]} 9. Ng3 {[%clk 0:03:03.9]} 9... e6 {[%clk 0:02:59.6]} 10. Be2
{[%clk 0:03:03.9]} 10... exd5 {[%clk 0:02:45.7]} 11. cxd5 {[%clk 0:03:04.8]}
11... h5 {[%clk 0:02:45.9]} 12. O-O {[%clk 0:03:04.9]} 12... h4 {[%clk
0:02:44.1]} 13. Nh1 {[%clk 0:03:05]} 13... Re8 {[%clk 0:02:34]} 14. Nf2 {[%clk
0:03:04.3]} 14... a6 {[%clk 0:02:34.2]} 15. a4 {[%clk 0:03:00.2]} 15... Nh7
{[%clk 0:02:11]} 16. f4 {[%clk 0:02:50.3]} 16... Nd7 {[%clk 0:02:09.8]} 17. Qd2
{[%clk 0:02:44.9]} 17... Rb8 {[%clk 0:01:46.8]} 18. Rab1 {[%clk 0:02:35.6]}
18... Nb6 {[%clk 0:01:40.5]} 19. b4 {[%clk 0:02:26.4]} 19... Nd7 {[%clk
0:01:16.4]} 20. bxc5 {[%clk 0:02:14.8]} 20... Nxc5 {[%clk 0:01:16.6]} 21. Bxc5
{[%clk 0:02:15]} 21... dxc5 {[%clk 0:01:16.6]} 22. e5 {[%clk 0:02:15.4]} 22...
f6 {[%clk 0:01:07.6]} 23. e6 {[%clk 0:02:12.4]} 23... f5 {[%clk 0:01:01.1]} 24.
Bc4 {[%clk 0:02:03.4]} 24... Kh8 {[%clk 0:00:42.2]} 25. Kh1 {[%clk 0:02:00]}
25... b6 {[%clk 0:00:33.6]} 26. Rfe1 {[%clk 0:01:55.9]} 26... Qd6 {[%clk
0:00:33.4]} 27. Nd3 {[%clk 0:01:34.7]} 27... Nf8 {[%clk 0:00:06.9]} 28. Rbd1
{[%clk 0:01:29.8]} 28... Bb7 {[%clk 0:00:04.5]} 29. Ne5 {[%clk 0:01:29.5]} 29...
Kh7 {[%clk 0:00:03.9]} 30. Nf7 {[%clk 0:01:27.6]} 30... Qe7 {[%clk 0:00:04]} 31.
d6 {[%clk 0:01:21.6]} 31... Qf6 {[%clk 0:00:04.2]} 32. Nd5 {[%clk 0:01:15.1]}
32... Bxd5 {[%clk 0:00:03]} 33. Bxd5 {[%clk 0:01:15.8]} 33... Red8 {[%clk
0:00:01.3]} 34. Nxd8 {[%clk 0:01:13]} 1-0

[Event "Early-Titled-Tuesday-Blitz-October-17-2023"]
[Site "Chess.com"]
[Date "2023.10.17"]
[Round "10"]
[White "Laico"]
[Black "CuattroPrincesses"]
[Result "1-0"]
[WhiteElo "2448"]
[BlackElo "2288"]
[TimeControl "180+1"]
[EndTime "9:58:25 PDT"]
[Termination "Laico won on time"]

1. e4 {[%clk 0:02:53.1]} 1... c5 {[%clk 0:02:59.7]} 2. Nc3 {[%clk 0:02:53.1]}
2... d6 {[%clk 0:03:00.2]} 3. f4 {[%clk 0:02:53.8]} 3... g6 {[%clk 0:02:59.2]}
4. Nf3 {[%clk 0:02:54.7]} 4... Bg7 {[%clk 0:02:59.5]} 5. Bb5+ {[%clk 0:02:55.5]}
5... Bd7 {[%clk 0:02:59.1]} 6. O-O {[%clk 0:02:56.2]} 6... Bxb5 {[%clk
0:02:55.7]} 7. Nxb5 {[%clk 0:02:57.1]} 7... a6 {[%clk 0:02:54.9]} 8. Nc3 {[%clk
0:02:57.5]} 8... Nc6 {[%clk 0:02:55.5]} 9. d3 {[%clk 0:02:58]} 9... e6 {[%clk
0:02:53.3]} 10. f5 {[%clk 0:02:57.6]} 10... Nge7 {[%clk 0:02:31.8]} 11. fxe6
{[%clk 0:02:57.1]} 11... fxe6 {[%clk 0:02:31.6]} 12. Ng5 {[%clk 0:02:57.3]}
12... Qd7 {[%clk 0:02:26.6]} 13. Qg4 {[%clk 0:02:56.3]} 13... Nd4 {[%clk
0:02:25.7]} 14. Rf7 {[%clk 0:02:33.1]} 14... h5 {[%clk 0:02:06.2]} 15. Qg3
{[%clk 0:01:55.4]} 15... Bh6 {[%clk 0:01:50.9]} 16. Rh7 {[%clk 0:01:55]} 16...
Rxh7 {[%clk 0:01:42.4]} 17. Nxh7 {[%clk 0:01:54.8]} 17... Bg7 {[%clk 0:01:33.7]}
18. Bh6 {[%clk 0:01:46.1]} 18... Be5 {[%clk 0:01:28.8]} 19. Qxe5 {[%clk
0:01:24.3]} 19... dxe5 {[%clk 0:01:28.1]} 20. Nf6+ {[%clk 0:01:24.9]} 20... Kd8
{[%clk 0:01:28.4]} 21. Nxd7 {[%clk 0:01:25.8]} 21... Kxd7 {[%clk 0:01:29.1]} 22.
Rf1 {[%clk 0:01:26.3]} 22... Kd6 {[%clk 0:00:56.2]} 23. Bf8 {[%clk 0:01:24.3]}
23... Re8 {[%clk 0:00:39.8]} 24. Rf7 {[%clk 0:01:16.4]} 24... Kd7 {[%clk
0:00:39.7]} 25. Na4 {[%clk 0:01:15.4]} 25... Nxc2 {[%clk 0:00:30.3]} 26. Nxc5+
{[%clk 0:00:56.4]} 26... Kc6 {[%clk 0:00:27.9]} 27. Bxe7 {[%clk 0:00:53.1]} 1-0

[Event "Early-Titled-Tuesday-Blitz-October-17-2023"]
[Site "Chess.com"]
[Date "2023.10.17"]
[Round "10"]
[White "BeautiFullMindChess"]
[Black "santosalberto1987"]
[Result "0-1"]
[WhiteElo "2264"]
[BlackElo "2415"]
[TimeControl "180+1"]
[EndTime "9:58:30 PDT"]
[Termination "santosalberto1987 won on time"]

1. e4 {[%clk 0:03:00.9]} 1... e6 {[%clk 0:02:59.6]} 2. d4 {[%clk 0:03:00.1]}
2... d5 {[%clk 0:03:00.1]} 3. exd5 {[%clk 0:02:58.4]} 3... exd5 {[%clk
0:03:00.4]} 4. Nf3 {[%clk 0:02:58.7]} 4... Nc6 {[%clk 0:02:59.8]} 5. Bd3 {[%clk
0:02:52.7]} 5... Bd6 {[%clk 0:02:59.8]} 6. O-O {[%clk 0:02:52.1]} 6... Bg4
{[%clk 0:02:58.5]} 7. c3 {[%clk 0:02:51.4]} 7... Qd7 {[%clk 0:02:57.2]} 8. Re1+
{[%clk 0:02:50.4]} 8... Nge7 {[%clk 0:02:57.6]} 9. Nbd2 {[%clk 0:02:50.6]} 9...
O-O-O {[%clk 0:02:57.7]} 10. b4 {[%clk 0:02:50.5]} 10... Ng6 {[%clk 0:02:57.7]}
11. b5 {[%clk 0:02:48.5]} 11... Nce7 {[%clk 0:02:57.9]} 12. Nb3 {[%clk
0:02:47.5]} 12... Nf4 {[%clk 0:02:50.3]} 13. Bxf4 {[%clk 0:02:42.8]} 13... Bxf4
{[%clk 0:02:51.2]} 14. Nc5 {[%clk 0:02:43]} 14... Qd6 {[%clk 0:02:51.5]} 15. Qa4
{[%clk 0:02:37]} 15... Kb8 {[%clk 0:02:51.7]} 16. Ne5 {[%clk 0:02:35.9]} 16...
Bxe5 {[%clk 0:02:49.7]} 17. Rxe5 {[%clk 0:02:34.1]} 17... Ng6 {[%clk 0:02:47.5]}
18. Bxg6 {[%clk 0:02:33.6]} 18... hxg6 {[%clk 0:02:47.3]} 19. h3 {[%clk
0:02:12]} 19... f6 {[%clk 0:02:47]} 20. Re3 {[%clk 0:02:09.4]} 20... Bc8 {[%clk
0:02:44.4]} 21. Rb1 {[%clk 0:02:02.4]} 21... g5 {[%clk 0:02:43.5]} 22. c4 {[%clk
0:01:51.2]} 22... g4 {[%clk 0:02:42.8]} 23. Na6+ {[%clk 0:01:05.5]} 23... Ka8
{[%clk 0:01:52.3]} 24. c5 {[%clk 0:00:59.8]} 24... Qf4 {[%clk 0:01:50.9]} 25. g3
{[%clk 0:00:50.3]} 25... Qf5 {[%clk 0:01:47.1]} 26. Rbe1 {[%clk 0:00:12.9]}
26... Rxh3 {[%clk 0:01:40.5]} 27. Nxc7+ {[%clk 0:00:11.9]} 27... Kb8 {[%clk
0:01:40.6]} 28. b6 {[%clk 0:00:11.2]} 28... a6 {[%clk 0:01:28.5]} 29. Nxa6+
{[%clk 0:00:07.5]} 29... bxa6 {[%clk 0:01:28.2]} 30. c6 {[%clk 0:00:07.6]} 30...
Rdh8 {[%clk 0:01:08.3]} 31. c7+ {[%clk 0:00:07.7]} 31... Kb7 {[%clk 0:01:07.7]}
32. Kf1 {[%clk 0:00:07.3]} 32... Qf3 {[%clk 0:01:07]} 33. Rxf3 {[%clk
0:00:03.8]} 33... gxf3 {[%clk 0:01:07.9]} 0-1

[Event "Early-Titled-Tuesday-Blitz-October-17-2023"]
[Site "Chess.com"]
[Date "2023.10.17"]
[Round "10"]
[White "rachidhuilda"]
[Black "mary-sanna"]
[Result "0-1"]
[WhiteElo "2309"]
[BlackElo "2192"]
[TimeControl "180+1"]
[EndTime "9:58:39 PDT"]
[Termination "mary-sanna won by checkmate"]

1. d4 {[%clk 0:03:00.9]} 1... d5 {[%clk 0:02:59.4]} 2. Nf3 {[%clk 0:03:00.6]}
2... Nf6 {[%clk 0:02:58.8]} 3. e3 {[%clk 0:03:00.7]} 3... e6 {[%clk 0:02:58.4]}
4. Bd3 {[%clk 0:03:00.8]} 4... Be7 {[%clk 0:02:57.8]} 5. b3 {[%clk 0:03:01.2]}
5... O-O {[%clk 0:02:57.6]} 6. Bb2 {[%clk 0:03:01.8]} 6... c5 {[%clk 0:02:57.8]}
7. Nbd2 {[%clk 0:02:59.7]} 7... cxd4 {[%clk 0:02:57]} 8. exd4 {[%clk 0:02:56.8]}
8... Nc6 {[%clk 0:02:48.8]} 9. O-O {[%clk 0:02:56.8]} 9... b6 {[%clk 0:02:48.6]}
10. Qe2 {[%clk 0:02:42.5]} 10... Nb4 {[%clk 0:02:46.3]} 11. Ne5 {[%clk
0:02:35.8]} 11... Bb7 {[%clk 0:02:30]} 12. Ndf3 {[%clk 0:02:12.3]} 12... Nxd3
{[%clk 0:02:28.3]} 13. cxd3 {[%clk 0:02:12.3]} 13... Rc8 {[%clk 0:02:24.7]} 14.
Rac1 {[%clk 0:02:11.7]} 14... Qd6 {[%clk 0:02:23.8]} 15. a3 {[%clk 0:02:08.4]}
15... Ba6 {[%clk 0:02:15.5]} 16. Qd2 {[%clk 0:02:01.1]} 16... h6 {[%clk
0:02:10.9]} 17. h3 {[%clk 0:02:00.4]} 17... Qb8 {[%clk 0:01:54.3]} 18. Nc6
{[%clk 0:01:50]} 18... Qb7 {[%clk 0:01:50.8]} 19. Nfe5 {[%clk 0:01:47.7]} 19...
Bd6 {[%clk 0:01:43.7]} 20. Nb4 {[%clk 0:01:45.8]} 20... Bxe5 {[%clk 0:01:18.8]}
21. dxe5 {[%clk 0:01:45.2]} 21... Nd7 {[%clk 0:01:18.5]} 22. d4 {[%clk
0:01:42.8]} 22... Bxf1 {[%clk 0:01:17.8]} 23. Rxf1 {[%clk 0:01:35]} 23... a5
{[%clk 0:01:17.5]} 24. Nd3 {[%clk 0:01:35]} 24... Rc7 {[%clk 0:01:13.3]} 25. Nf4
{[%clk 0:01:34]} 25... Rfc8 {[%clk 0:01:12.5]} 26. Qe2 {[%clk 0:01:32.5]} 26...
Rc2 {[%clk 0:01:11.7]} 27. Qg4 {[%clk 0:01:32.2]} 27... Rxb2 {[%clk 0:01:06.2]}
28. Nh5 {[%clk 0:01:32.3]} 28... g6 {[%clk 0:01:00.8]} 29. f4 {[%clk 0:01:23.7]}
29... Kh7 {[%clk 0:00:55.9]} 30. f5 {[%clk 0:01:16.7]} 30... gxh5 {[%clk
0:00:50.7]} 31. Qxh5 {[%clk 0:01:11.1]} 31... Rg8 {[%clk 0:00:40.6]} 32. Qxf7+
{[%clk 0:01:07.2]} 32... Rg7 {[%clk 0:00:39.7]} 33. fxe6 {[%clk 0:01:02.1]}
33... Rxg2+ {[%clk 0:00:35.2]} 34. Kh1 {[%clk 0:01:02.4]} 34... Rxf7 {[%clk
0:00:29.9]} 35. Rxf7+ {[%clk 0:01:02.3]} 35... Rg7 {[%clk 0:00:29.9]} 36. exd7
{[%clk 0:00:46.6]} 36... Qc7 {[%clk 0:00:23.3]} 37. e6 {[%clk 0:00:44.7]} 37...
Qc1+ {[%clk 0:00:22.9]} 38. Kh2 {[%clk 0:00:43.9]} 38... Qg1# {[%clk 0:00:23]}
0-1

[Event "Early-Titled-Tuesday-Blitz-October-17-2023"]
[Site "Chess.com"]
[Date "2023.10.17"]
[Round "10"]
[White "C_K_G"]
[Black "Shockerlover"]
[Result "1-0"]
[WhiteElo "1897"]
[BlackElo "1953"]
[TimeControl "180+1"]
[EndTime "9:58:40 PDT"]
[Termination "C_K_G won on time"]

1. e4 {[%clk 0:03:00.9]} 1... g6 {[%clk 0:02:59.8]} 2. Nf3 {[%clk 0:02:54]} 2...
Bg7 {[%clk 0:03:00.7]} 3. d4 {[%clk 0:02:44.4]} 3... d6 {[%clk 0:03:00.7]} 4.
Bd3 {[%clk 0:02:44.5]} 4... c6 {[%clk 0:02:59]} 5. h3 {[%clk 0:02:43.5]} 5... b5
{[%clk 0:02:58.1]} 6. a3 {[%clk 0:02:42.8]} 6... Nd7 {[%clk 0:02:55.8]} 7. O-O
{[%clk 0:02:42.4]} 7... Nb6 {[%clk 0:02:55.7]} 8. Nc3 {[%clk 0:02:41.9]} 8...
Nf6 {[%clk 0:02:45.8]} 9. Re1 {[%clk 0:02:41.4]} 9... O-O {[%clk 0:02:45.6]} 10.
Bg5 {[%clk 0:02:39.6]} 10... a5 {[%clk 0:02:43.2]} 11. Qd2 {[%clk 0:02:35]}
11... Re8 {[%clk 0:02:28.8]} 12. e5 {[%clk 0:02:25.7]} 12... dxe5 {[%clk
0:02:27.2]} 13. dxe5 {[%clk 0:02:25.4]} 13... Nfd5 {[%clk 0:02:26.3]} 14. Ne4
{[%clk 0:02:17.1]} 14... Qc7 {[%clk 0:02:17.5]} 15. Ng3 {[%clk 0:02:09.3]} 15...
Be6 {[%clk 0:02:11.5]} 16. Bh6 {[%clk 0:02:07.8]} 16... Rad8 {[%clk 0:01:58.6]}
17. Bxg7 {[%clk 0:02:03.7]} 17... Kxg7 {[%clk 0:01:58.2]} 18. Qg5 {[%clk
0:02:00.3]} 18... h6 {[%clk 0:01:39.1]} 19. Qh4 {[%clk 0:01:56.9]} 19... Nc4
{[%clk 0:01:27.6]} 20. b3 {[%clk 0:01:52.9]} 20... Nb2 {[%clk 0:01:20.3]} 21.
Be4 {[%clk 0:01:50.9]} 21... Nc3 {[%clk 0:01:17.4]} 22. Kh2 {[%clk 0:01:25.8]}
22... Nbd1 {[%clk 0:01:01.9]} 23. Kg1 {[%clk 0:01:05.2]} 23... Nxe4 {[%clk
0:00:59.8]} 24. Nxe4 {[%clk 0:01:00.6]} 24... Nb2 {[%clk 0:00:30.7]} 25. Nf6
{[%clk 0:00:55.1]} 25... exf6 {[%clk 0:00:26.2]} 26. exf6+ {[%clk 0:00:54.3]}
26... Kh7 {[%clk 0:00:26.5]} 27. Ng5+ {[%clk 0:00:53.4]} 27... Kg8 {[%clk
0:00:06.8]} 28. Qxh6 {[%clk 0:00:51.7]} 1-0

[Event "Early-Titled-Tuesday-Blitz-October-17-2023"]
[Site "Chess.com"]
[Date "2023.10.17"]
[Round "10"]
[White "Eagle_2019"]
[Black "Sanyura"]
[Result "0-1"]
[WhiteElo "2687"]
[BlackElo "2554"]
[TimeControl "180+1"]
[EndTime "9:58:41 PDT"]
[Termination "Sanyura won by resignation"]

1. d4 {[%clk 0:03:00.9]} 1... Nf6 {[%clk 0:02:57.9]} 2. Bg5 {[%clk 0:03:00.3]}
2... g6 {[%clk 0:02:57.4]} 3. Bxf6 {[%clk 0:03:00]} 3... exf6 {[%clk 0:02:58.3]}
4. e3 {[%clk 0:03:00.6]} 4... Bg7 {[%clk 0:02:59.2]} 5. c4 {[%clk 0:02:59.9]}
5... O-O {[%clk 0:03:00.1]} 6. Nc3 {[%clk 0:02:59.7]} 6... f5 {[%clk 0:03:01]}
7. g3 {[%clk 0:03:00.1]} 7... c5 {[%clk 0:03:01.9]} 8. Nge2 {[%clk 0:02:58.9]}
8... cxd4 {[%clk 0:03:02.8]} 9. Nxd4 {[%clk 0:02:53.6]} 9... f4 {[%clk
0:03:02.8]} 10. gxf4 {[%clk 0:02:51.8]} 10... Nc6 {[%clk 0:02:59.6]} 11. Ndb5
{[%clk 0:02:45.2]} 11... d6 {[%clk 0:02:12.5]} 12. Bg2 {[%clk 0:02:39.2]} 12...
Be6 {[%clk 0:02:11]} 13. Nxd6 {[%clk 0:02:20]} 13... Qa5 {[%clk 0:02:06.5]} 14.
O-O {[%clk 0:01:49.4]} 14... Rad8 {[%clk 0:01:50.8]} 15. c5 {[%clk 0:01:31.8]}
15... Rd7 {[%clk 0:01:29.1]} 16. Nce4 {[%clk 0:00:54]} 16... Bxb2 {[%clk
0:01:19.9]} 17. Rb1 {[%clk 0:00:53.6]} 17... Bg7 {[%clk 0:01:19.7]} 18. Rxb7
{[%clk 0:00:47.3]} 18... Rxb7 {[%clk 0:01:19.3]} 19. Nxb7 {[%clk 0:00:48.2]}
19... Qxa2 {[%clk 0:01:20]} 20. Ng5 {[%clk 0:00:45.8]} 20... Bc4 {[%clk
0:01:18.9]} 21. Bxc6 {[%clk 0:00:42.3]} 21... Bxf1 {[%clk 0:01:18.5]} 22. Kxf1
{[%clk 0:00:35.9]} 22... Qa6+ {[%clk 0:01:17]} 23. Kg1 {[%clk 0:00:18.2]} 23...
Qxc6 {[%clk 0:01:17]} 24. Qf3 {[%clk 0:00:17.2]} 24... Rc8 {[%clk 0:01:12.2]}
25. Qxc6 {[%clk 0:00:12.7]} 25... Rxc6 {[%clk 0:01:13.1]} 26. Nxf7 {[%clk
0:00:12.6]} 26... a5 {[%clk 0:00:56.1]} 27. Nfd8 {[%clk 0:00:07.3]} 27... Rc8
{[%clk 0:00:54.6]} 28. Ne6 {[%clk 0:00:02.8]} 28... a4 {[%clk 0:00:53.8]} 29.
Nxg7 {[%clk 0:00:02.6]} 29... Kxg7 {[%clk 0:00:52.8]} 30. Nd6 {[%clk 0:00:02.6]}
30... Rxc5 {[%clk 0:00:52.4]} 31. Ne4 {[%clk 0:00:02.7]} 31... Rc1+ {[%clk
0:00:52.5]} 0-1

[Event "Early-Titled-Tuesday-Blitz-October-17-2023"]
[Site "Chess.com"]
[Date "2023.10.17"]
[Round "10"]
[White "profedechess93"]
[Black "ChessQueen"]
[Result "0-1"]
[WhiteElo "2602"]
[BlackElo "2716"]
[TimeControl "180+1"]
[EndTime "9:58:46 PDT"]
[Termination "ChessQueen won by resignation"]

1. e4 {[%clk 0:02:54.3]} 1... c6 {[%clk 0:03:00]} 2. d4 {[%clk 0:02:52]} 2... d5
{[%clk 0:02:59.9]} 3. Nc3 {[%clk 0:02:52.1]} 3... dxe4 {[%clk 0:02:59.9]} 4.
Nxe4 {[%clk 0:02:53]} 4... Nf6 {[%clk 0:03:00.5]} 5. Nxf6+ {[%clk 0:02:51.7]}
5... exf6 {[%clk 0:03:01.4]} 6. c3 {[%clk 0:02:52.2]} 6... Bd6 {[%clk
0:03:01.7]} 7. Bd3 {[%clk 0:02:52.6]} 7... Na6 {[%clk 0:03:00.3]} 8. Qc2 {[%clk
0:02:52.2]} 8... Nc7 {[%clk 0:02:54.2]} 9. Ne2 {[%clk 0:02:52.5]} 9... Bg4
{[%clk 0:02:44.3]} 10. Bd2 {[%clk 0:02:48.8]} 10... Qd7 {[%clk 0:02:41.7]} 11.
O-O-O {[%clk 0:02:44.8]} 11... O-O-O {[%clk 0:02:39.4]} 12. h3 {[%clk
0:02:43.4]} 12... Be6 {[%clk 0:02:39.2]} 13. Kb1 {[%clk 0:02:32.2]} 13... Nd5
{[%clk 0:02:34.5]} 14. c4 {[%clk 0:02:24.6]} 14... Nc7 {[%clk 0:02:23.3]} 15.
Rhe1 {[%clk 0:01:34.1]} 15... h5 {[%clk 0:02:13.9]} 16. Qa4 {[%clk 0:01:11.1]}
16... Kb8 {[%clk 0:02:11.6]} 17. Nf4 {[%clk 0:01:07.6]} 17... g6 {[%clk
0:01:42.5]} 18. Be3 {[%clk 0:00:54.7]} 18... Bxf4 {[%clk 0:01:23]} 19. Bxf4
{[%clk 0:00:55.6]} 19... Bf5 {[%clk 0:01:18.8]} 20. Ka1 {[%clk 0:00:35.7]} 20...
Bxd3 {[%clk 0:01:13.9]} 21. Rxd3 {[%clk 0:00:36.6]} 21... Rhe8 {[%clk
0:01:13.8]} 22. Be3 {[%clk 0:00:36.1]} 22... b6 {[%clk 0:01:08.5]} 23. Red1
{[%clk 0:00:33.7]} 23... Kb7 {[%clk 0:01:03.3]} 24. Ra3 {[%clk 0:00:31.7]} 24...
a6 {[%clk 0:00:47.8]} 25. Rb3 {[%clk 0:00:29.4]} 25... b5 {[%clk 0:00:48.2]} 26.
d5 {[%clk 0:00:24.6]} 26... cxd5 {[%clk 0:00:46]} 27. Qa5 {[%clk 0:00:23.5]}
27... d4 {[%clk 0:00:26.4]} 28. Rxd4 {[%clk 0:00:19.6]} 28... Qc6 {[%clk
0:00:26.6]} 29. Rd1 {[%clk 0:00:16.7]} 29... Rxd1+ {[%clk 0:00:25.8]} 0-1

[Event "Early-Titled-Tuesday-Blitz-October-17-2023"]
[Site "Chess.com"]
[Date "2023.10.17"]
[Round "10"]
[White "carokannlover213"]
[Black "m_ezat"]
[Result "1-0"]
[WhiteElo "2730"]
[BlackElo "2561"]
[TimeControl "180+1"]
[EndTime "9:58:56 PDT"]
[Termination "carokannlover213 won by checkmate"]

1. e4 {[%clk 0:03:00.9]} 1... c6 {[%clk 0:02:58.7]} 2. c4 {[%clk 0:02:46.5]}
2... d5 {[%clk 0:02:57]} 3. exd5 {[%clk 0:02:47.4]} 3... cxd5 {[%clk 0:02:56.7]}
4. d4 {[%clk 0:02:47.9]} 4... Nf6 {[%clk 0:02:56.7]} 5. Nc3 {[%clk 0:02:47.1]}
5... g6 {[%clk 0:02:56.9]} 6. cxd5 {[%clk 0:02:46.7]} 6... Bg7 {[%clk
0:02:56.8]} 7. Qb3 {[%clk 0:02:46.5]} 7... O-O {[%clk 0:02:56.8]} 8. Bc4 {[%clk
0:02:29.8]} 8... Na6 {[%clk 0:02:55.2]} 9. Bf4 {[%clk 0:02:24.7]} 9... Nc7
{[%clk 0:02:54.7]} 10. Nf3 {[%clk 0:02:16.5]} 10... a6 {[%clk 0:02:54.4]} 11. a4
{[%clk 0:02:15.8]} 11... b5 {[%clk 0:02:20.4]} 12. axb5 {[%clk 0:01:56.5]} 12...
axb5 {[%clk 0:02:19.7]} 13. Rxa8 {[%clk 0:01:57.4]} 13... bxc4 {[%clk
0:02:17.6]} 14. Bxc7 {[%clk 0:01:56]} 14... Qxc7 {[%clk 0:02:09.4]} 15. Qb5
{[%clk 0:01:56]} 15... Qd6 {[%clk 0:01:57.9]} 16. Qxc4 {[%clk 0:01:43.2]} 16...
Bb7 {[%clk 0:01:54.3]} 17. Rxf8+ {[%clk 0:01:41]} 17... Bxf8 {[%clk 0:01:55.2]}
18. O-O {[%clk 0:00:48.2]} 18... Ba6 {[%clk 0:01:46.1]} 19. Qc6 {[%clk 0:00:30]}
19... Bxf1 {[%clk 0:01:45.9]} 20. Qxd6 {[%clk 0:00:29.9]} 20... exd6 {[%clk
0:01:46.8]} 21. Kxf1 {[%clk 0:00:30.3]} 21... Be7 {[%clk 0:01:45.2]} 22. Ke2
{[%clk 0:00:28.7]} 22... Bd8 {[%clk 0:01:45.1]} 23. Kd3 {[%clk 0:00:28.2]} 23...
Kf8 {[%clk 0:01:43]} 24. b4 {[%clk 0:00:26.4]} 24... Ke7 {[%clk 0:01:39.4]} 25.
h3 {[%clk 0:00:25.9]} 25... Kd7 {[%clk 0:01:38.5]} 26. Kc4 {[%clk 0:00:23.8]}
26... Kc7 {[%clk 0:01:38.3]} 27. Ng5 {[%clk 0:00:23.7]} 27... Nd7 {[%clk
0:01:18.3]} 28. Nxf7 {[%clk 0:00:21.8]} 28... Bf6 {[%clk 0:01:16.5]} 29. Nb5+
{[%clk 0:00:20.6]} 29... Kb8 {[%clk 0:01:12.7]} 30. Nbxd6 {[%clk 0:00:20.7]}
30... Nb6+ {[%clk 0:01:12]} 31. Kc5 {[%clk 0:00:20.9]} 31... Na4+ {[%clk
0:01:07.7]} 32. Kc6 {[%clk 0:00:20.9]} 32... Bxd4 {[%clk 0:01:07]} 33. b5 {[%clk
0:00:20.2]} 33... Bxf2 {[%clk 0:01:04.6]} 34. Ne5 {[%clk 0:00:18]} 34... Bg3
{[%clk 0:01:00]} 35. Nd7+ {[%clk 0:00:17.7]} 35... Ka8 {[%clk 0:01:00.9]} 36.
Nc8 {[%clk 0:00:12.3]} 36... Nb2 {[%clk 0:00:49.8]} 37. b6 {[%clk 0:00:11.3]}
37... Nc4 {[%clk 0:00:41.1]} 38. b7# {[%clk 0:00:08.3]} 1-0